fUST/lending_fUST_20260605
["ID","MTS","AMOUNT","RATE_DAILY","PERIOD"]
[424101426,1780589457000,-355.53349255,0.0001694,2]
[424101417,1780589457000,-20000.0,0.000169,2]
[424101413,1780589457000,-160.0,0.00016779,2]
[424101424,1780589457000,-243.65722173,0.0001694,2]
[424101414,1780589457000,-213.796321,0.00016779,2]
[424101407,1780589457000,-500.0,0.00016712,2]
[424101408,1780589457000,-2288.73,0.00016712,2]
[424101425,1780589457000,-152.6620437,0.0001694,2]
[424101503,1780589458000,-500.0,0.00016986,2]
[424101501,1780589458000,-500.0,0.00016986,2]
[424101500,1780589458000,-589.99,0.00016986,2]
[424101491,1780589458000,-500.0,0.00016986,2]
[424101487,1780589458000,-765.96,0.00016986,2]
[424101492,1780589458000,-2515.87,0.00016986,2]
[424101493,1780589458000,-511.22,0.00016986,2]
[424101496,1780589458000,-577.42,0.00016986,2]
[424101495,1780589458000,-946.4,0.00016986,2]
[424101494,1780589458000,-802.73,0.00016986,2]
[424101499,1780589458000,-1791.1,0.00016986,2]
[424101502,1780589458000,-1019.56,0.00016986,2]
[424101497,1780589458000,-500.0,0.00016986,2]
[424101504,1780589458000,-500.0,0.00016986,2]
[424101511,1780589458000,-571.97,0.00016986,2]
[424101512,1780589458000,-728.73,0.00016986,2]
[424101508,1780589458000,-500.0,0.00016986,2]
[424101505,1780589458000,-889.78,0.00016986,2]
[424101513,1780589458000,-567.5,0.00016986,2]
[424101507,1780589458000,-500.0,0.00016986,2]
[424101506,1780589458000,-500.0,0.00016986,2]
[424101509,1780589458000,-2280.2,0.00016986,2]
[424101515,1780589458000,-500.0,0.00016986,2]
[424101520,1780589458000,-500.0,0.00016986,2]
[424101514,1780589458000,-526.21,0.00016986,2]
[424101521,1780589458000,-1024.0,0.00016986,2]
[424101524,1780589458000,-308.68917715,0.00016986,2]
[424101526,1780589458000,-765.44,0.00016986,2]
[424101498,1780589458000,-2201.03,0.00016986,2]
[424101510,1780589458000,-514.78,0.00016986,2]
[424101489,1780589458000,-500.0,0.00016986,2]
[424101516,1780589458000,-654.61,0.00016986,2]
[424101488,1780589458000,-585.31,0.00016986,2]
[424101459,1780589458000,-388.81087738,0.00016952,2]
[424101460,1780589458000,-384.83363607,0.00016952,2]
[424101458,1780589458000,-384.05459994,0.00016952,2]
[424101457,1780589458000,-392.78821336,0.0001694,2]
[424101462,1780589458000,-330.32239037,0.00016952,2]
[424101472,1780589458000,-187.74509806,0.00016956,2]
[424101473,1780589458000,-489.00559965,0.00016956,2]
[424101461,1780589458000,-364.60396471,0.00016952,2]
[424101468,1780589458000,-324.97884057,0.00016956,2]
[424101471,1780589458000,-424.34766617,0.00016956,2]
[424101464,1780589458000,-353.23994098,0.00016952,2]
[424101467,1780589458000,-355.62119357,0.00016952,2]
[424101465,1780589458000,-312.42778866,0.00016952,2]
[424101463,1780589458000,-209.13102342,0.00016952,2]
[424101469,1780589458000,-435.83365055,0.00016956,2]
[424101466,1780589458000,-151.9659633,0.00016952,2]
[424101470,1780589458000,-183.4602502,0.00016956,2]
[424101476,1780589458000,-463.36774722,0.00016956,2]
[424101474,1780589458000,-234.9671459,0.00016956,2]
[424101475,1780589458000,-325.33921364,0.00016956,2]
[424101477,1780589458000,-306.33733889,0.00016956,2]
[424101478,1780589458000,-302.66261949,0.00016956,2]
[424101479,1780589458000,-314.32376803,0.00016956,2]
[424101480,1780589458000,-402.41108508,0.00016956,2]
[424101481,1780589458000,-366.61684024,0.00016965,2]
[424101486,1780589458000,-500.0,0.00016986,2]
[424101485,1780589458000,-500.0,0.00016986,2]
[424101482,1780589458000,-329.23140659,0.00016986,2]
[424101484,1780589458000,-181.8826,0.00016986,2]
[424101490,1780589458000,-987.12,0.00016986,2]
[424101517,1780589458000,-500.0,0.00016986,2]
[424101483,1780589458000,-1311.3977,0.00016986,2]
[424101522,1780589458000,-417.76124944,0.00016986,2]
[424101587,1780589458000,-802.73,0.0001726,2]
[424101556,1780589458000,-309.64968934,0.00017019,2]
[424101554,1780589458000,-500.0,0.00016986,2]
[424101562,1780589458000,-304.37780323,0.00017074,2]
[424101552,1780589458000,-2231.45,0.00016986,2]
[424101565,1780589458000,-1176.722653,0.00017197,2]
[424101564,1780589458000,-10082.36423193,0.000171,2]
[424101559,1780589458000,-331.49093735,0.00017074,2]
[424101563,1780589458000,-150.52,0.000171,2]
[424101567,1780589458000,-278.715579,0.00017197,2]
[424101574,1780589458000,-319.93886233,0.00017226,2]
[424101568,1780589458000,-239.188838,0.00017197,2]
[424101569,1780589458000,-467.369299,0.00017197,2]
[424101566,1780589458000,-392.029306,0.00017197,2]
[424101561,1780589458000,-377.63988101,0.00017074,2]
[424101575,1780589458000,-182.72636602,0.00017226,2]
[424101579,1780589458000,-500.0,0.0001726,2]
[424101576,1780589458000,-374.71971065,0.00017226,2]
[424101577,1780589458000,-1311.3977,0.0001726,2]
[424101578,1780589458000,-500.0,0.0001726,2]
[424101570,1780589458000,-997.980957,0.00017197,2]
[424101571,1780589458000,-20000.0,0.000172,2]
[424101580,1780589458000,-765.96,0.0001726,2]
[424101573,1780589458000,-308.10088214,0.000172,2]
[424101581,1780589458000,-585.31,0.0001726,2]
[424101583,1780589458000,-987.12,0.0001726,2]
[424101585,1780589458000,-2515.87,0.0001726,2]
[424101584,1780589458000,-500.0,0.0001726,2]
[424101586,1780589458000,-511.22,0.0001726,2]
[424101523,1780589458000,-500.0,0.00016986,2]
[424101572,1780589458000,-1500.0,0.000172,2]
[424101553,1780589458000,-500.0,0.00016986,2]
[424101582,1780589458000,-500.0,0.0001726,2]
[424101555,1780589458000,-500.0,0.00016986,2]
[424101557,1780589458000,-312.85220174,0.00017056,2]
[424101525,1780589458000,-500.0,0.00016986,2]
[424101519,1780589458000,-500.0,0.00016986,2]
[424101528,1780589458000,-500.0,0.00016986,2]
[424101538,1780589458000,-500.0,0.00016986,2]
[424101527,1780589458000,-12161.64,0.00016986,2]
[424101530,1780589458000,-500.0,0.00016986,2]
[424101529,1780589458000,-676.34,0.00016986,2]
[424101536,1780589458000,-1987.77,0.00016986,2]
[424101532,1780589458000,-923.32,0.00016986,2]
[424101533,1780589458000,-1424.81,0.00016986,2]
[424101531,1780589458000,-3210.41,0.00016986,2]
[424101535,1780589458000,-578.01,0.00016986,2]
[424101537,1780589458000,-2341.85,0.00016986,2]
[424101534,1780589458000,-521.51,0.00016986,2]
[424101518,1780589458000,-670.93,0.00016986,2]
[424101547,1780589458000,-500.0,0.00016986,2]
[424101540,1780589458000,-500.0,0.00016986,2]
[424101558,1780589458000,-318.21705029,0.00017074,2]
[424101543,1780589458000,-1040.92,0.00016986,2]
[424101548,1780589458000,-1127.29,0.00016986,2]
[424101542,1780589458000,-500.0,0.00016986,2]
[424101539,1780589458000,-500.0,0.00016986,2]
[424101544,1780589458000,-1047.04,0.00016986,2]
[424101549,1780589458000,-3183.02,0.00016986,2]
[424101541,1780589458000,-500.0,0.00016986,2]
[424101550,1780589458000,-500.0,0.00016986,2]
[424101551,1780589458000,-2288.73,0.00016986,2]
[424101560,1780589458000,-151.93154235,0.00017074,2]
[424101546,1780589458000,-500.0,0.00016986,2]
[424101545,1780589458000,-566.51,0.00016986,2]
[424101639,1780589459000,-1127.29,0.0001726,2]
[424101626,1780589459000,-578.01,0.0001726,2]
[424101622,1780589459000,-3210.41,0.0001726,2]
[424101617,1780589459000,-500.0,0.0001726,2]
[424101619,1780589459000,-500.0,0.0001726,2]
[424101618,1780589459000,-12161.64,0.0001726,2]
[424101621,1780589459000,-500.0,0.0001726,2]
[424101625,1780589459000,-521.51,0.0001726,2]
[424101638,1780589459000,-500.0,0.0001726,2]
[424101628,1780589459000,-2341.85,0.0001726,2]
[424101627,1780589459000,-1987.77,0.0001726,2]
[424101624,1780589459000,-1424.81,0.0001726,2]
[424101620,1780589459000,-676.34,0.0001726,2]
[424101637,1780589459000,-558.84,0.0001726,2]
[424101629,1780589459000,-500.0,0.0001726,2]
[424101631,1780589459000,-165.55821981,0.0001726,2]
[424101630,1780589459000,-402.26330759,0.0001726,2]
[424101636,1780589459000,-566.51,0.0001726,2]
[424101635,1780589459000,-1047.04,0.0001726,2]
[424101633,1780589459000,-500.0,0.0001726,2]
[424101634,1780589459000,-1040.92,0.0001726,2]
[424101641,1780589459000,-500.0,0.0001726,2]
[424101652,1780589459000,-486.362388,0.00017369,2]
[424101651,1780589459000,-246.607629,0.00017369,2]
[424101615,1780589459000,-500.0,0.0001726,2]
[424101643,1780589459000,-2231.45,0.0001726,2]
[424101632,1780589459000,-500.0,0.0001726,2]
[424101623,1780589459000,-923.32,0.0001726,2]
[424101600,1780589459000,-500.0,0.0001726,2]
[424101614,1780589459000,-1024.0,0.0001726,2]
[424101647,1780589459000,-345.91913874,0.00017281,2]
[424101594,1780589459000,-500.0,0.0001726,2]
[424101593,1780589459000,-589.99,0.0001726,2]
[424101588,1780589459000,-946.4,0.0001726,2]
[424101590,1780589459000,-500.0,0.0001726,2]
[424101589,1780589459000,-577.42,0.0001726,2]
[424101592,1780589459000,-1791.1,0.0001726,2]
[424101591,1780589459000,-2201.03,0.0001726,2]
[424101596,1780589459000,-500.0,0.0001726,2]
[424101595,1780589459000,-1019.56,0.0001726,2]
[424101599,1780589459000,-177.44707969,0.0001726,2]
[424101597,1780589459000,-500.0,0.0001726,2]
[424101616,1780589459000,-765.44,0.0001726,2]
[424101603,1780589459000,-514.78,0.0001726,2]
[424101601,1780589459000,-500.0,0.0001726,2]
[424101602,1780589459000,-2280.2,0.0001726,2]
[424101605,1780589459000,-728.73,0.0001726,2]
[424101604,1780589459000,-571.97,0.0001726,2]
[424101607,1780589459000,-526.21,0.0001726,2]
[424101606,1780589459000,-567.5,0.0001726,2]
[424101608,1780589459000,-500.0,0.0001726,2]
[424101609,1780589459000,-654.61,0.0001726,2]
[424101610,1780589459000,-500.0,0.0001726,2]
[424101611,1780589459000,-670.93,0.0001726,2]
[424101612,1780589459000,-500.0,0.0001726,2]
[424101613,1780589459000,-500.0,0.0001726,2]
[424101598,1780589459000,-889.78,0.0001726,2]
[424101649,1780589459000,-1032.98973798,0.000173,2]
[424101656,1780589459000,-570.30294019,0.00017464,2]
[424101640,1780589459000,-3183.02,0.0001726,2]
[424101680,1780589459000,-498.40116574,0.00017464,2]
[424101679,1780589459000,-498.72336307,0.00017464,2]
[424101689,1780589459000,-2604.2124757,0.00017464,2]
[424101681,1780589459000,-806.23328143,0.00017464,2]
[424101688,1780589459000,-177.92030015,0.00017464,2]
[424101682,1780589459000,-240.42386966,0.00017464,2]
[424101683,1780589459000,-405.42377996,0.00017464,2]
[424101690,1780589459000,-457.27208597,0.00017464,2]
[424101687,1780589459000,-388.53298296,0.00017464,2]
[424101686,1780589459000,-283.99087896,0.00017464,2]
[424101684,1780589459000,-187.95223404,0.00017464,2]
[424101685,1780589459000,-167.5491163,0.00017464,2]
[424101678,1780589459000,-444.81862732,0.00017464,2]
[424101692,1780589459000,-1174.60728898,0.00017464,2]
[424101691,1780589459000,-544.96235551,0.00017464,2]
[424101701,1780589459000,-541.28285665,0.00017464,2]
[424101697,1780589459000,-484.83114011,0.00017464,2]
[424101700,1780589459000,-550.57470514,0.00017464,2]
[424101694,1780589459000,-532.37029096,0.00017464,2]
[424101646,1780589459000,-500.0,0.0001726,2]
[424101693,1780589459000,-834.58249381,0.00017464,2]
[424101696,1780589459000,-489.06634034,0.00017464,2]
[424101695,1780589459000,-412.12904454,0.00017464,2]
[424101699,1780589459000,-569.48881112,0.00017464,2]
[424101703,1780589459000,-576.08189991,0.00017476,2]
[424101704,1780589459000,-472.75599645,0.00017476,2]
[424101702,1780589459000,-589.18232004,0.00017464,2]
[424101676,1780589459000,-298.15984164,0.00017464,2]
[424101698,1780589459000,-594.9050415,0.00017464,2]
[424101672,1780589459000,-2005.80985789,0.00017464,2]
[424101674,1780589459000,-551.70022401,0.00017464,2]
[424101642,1780589459000,-2288.73,0.0001726,2]
[424101653,1780589459000,-150.52,0.000174,2]
[424101645,1780589459000,-500.0,0.0001726,2]
[424101648,1780589459000,-169.47401,0.00017283,2]
[424101654,1780589459000,-470.499637,0.00017431,2]
[424101655,1780589459000,-824.60146353,0.00017464,2]
[424101644,1780589459000,-500.0,0.0001726,2]
[424101657,1780589459000,-533.30023883,0.00017464,2]
[424101660,1780589459000,-167.02202968,0.00017464,2]
[424101659,1780589459000,-305.32408739,0.00017464,2]
[424101658,1780589459000,-487.31444347,0.00017464,2]
[424101663,1780589459000,-469.82797546,0.00017464,2]
[424101650,1780589459000,-10082.36423193,0.000173,2]
[424101665,1780589459000,-533.94463122,0.00017464,2]
[424101664,1780589459000,-528.61367829,0.00017464,2]
[424101675,1780589459000,-154.10647303,0.00017464,2]
[424101671,1780589459000,-285.89320346,0.00017464,2]
[424101669,1780589459000,-177.31428255,0.00017464,2]
[424101667,1780589459000,-669.05371135,0.00017464,2]
[424101673,1780589459000,-560.43474237,0.00017464,2]
[424101668,1780589459000,-336.84372181,0.00017464,2]
[424101661,1780589459000,-175.73485456,0.00017464,2]
[424101662,1780589459000,-462.34068812,0.00017464,2]
[424101666,1780589459000,-508.15397844,0.00017464,2]
[424101670,1780589459000,-600.93712161,0.00017464,2]
[424101677,1780589459000,-167.20138759,0.00017464,2]
[424101729,1780589460000,-459.50600834,0.0001748,2]
[424101735,1780589460000,-10082.36423193,0.000175,2]
[424101727,1780589460000,-488.00882046,0.0001748,2]
[424101731,1780589460000,-471.48565205,0.0001748,2]
[424101732,1780589460000,-603.61662762,0.0001748,2]
[424101733,1780589460000,-549.92526035,0.0001749,2]
[424101737,1780589460000,-197.24493826,0.00017515,2]
[424101736,1780589460000,-493.84710989,0.00017511,2]
[424101734,1780589460000,-20000.0,0.000175,2]
[424101745,1780589460000,-987.12,0.00017534,2]
[424101739,1780589460000,-1311.3977,0.00017534,2]
[424101738,1780589460000,-214.838003,0.00017531,2]
[424101742,1780589460000,-765.96,0.00017534,2]
[424101741,1780589460000,-500.0,0.00017534,2]
[424101750,1780589460000,-577.42,0.00017534,2]
[424101753,1780589460000,-2201.03,0.00017534,2]
[424101752,1780589460000,-500.0,0.00017534,2]
[424101743,1780589460000,-585.31,0.00017534,2]
[424101724,1780589460000,-375.49019611,0.0001748,2]
[424101740,1780589460000,-500.0,0.00017534,2]
[424101730,1780589460000,-453.99392924,0.0001748,2]
[424101714,1780589460000,-468.64168299,0.00017477,2]
[424101726,1780589460000,-469.93429179,0.0001748,2]
[424101744,1780589460000,-500.0,0.00017534,2]
[424101705,1780589460000,-583.21631607,0.00017477,2]
[424101706,1780589460000,-577.2504541,0.00017477,2]
[424101707,1780589460000,-546.90594706,0.00017477,2]
[424101710,1780589460000,-529.85991148,0.00017477,2]
[424101709,1780589460000,-418.26204685,0.00017477,2]
[424101708,1780589460000,-495.48358555,0.00017477,2]
[424101711,1780589460000,-230.99244967,0.00017477,2]
[424101712,1780589460000,-185.53531901,0.00017477,2]
[424101728,1780589460000,-695.05162084,0.0001748,2]
[424101715,1780589460000,-533.43179036,0.00017477,2]
[424101717,1780589460000,-170.644206,0.00017479,2]
[424101713,1780589460000,-303.9319266,0.00017477,2]
[424101718,1780589460000,-487.46826085,0.0001748,2]
[424101720,1780589460000,-280.89885075,0.0001748,2]
[424101722,1780589460000,-216.07606548,0.0001748,2]
[424101719,1780589460000,-653.75047582,0.0001748,2]
[424101721,1780589460000,-366.92050041,0.0001748,2]
[424101723,1780589460000,-636.52149926,0.0001748,2]
[424101725,1780589460000,-733.50839947,0.0001748,2]
[424101716,1780589460000,-3671.853645,0.00017479,2]
[424101749,1780589460000,-802.73,0.00017534,2]
[424101747,1780589460000,-2515.87,0.00017534,2]
[424101746,1780589460000,-500.0,0.00017534,2]
[424101774,1780589460000,-500.0,0.00017534,2]
[424101771,1780589460000,-500.0,0.00017534,2]
[424101775,1780589460000,-1024.0,0.00017534,2]
[424101780,1780589460000,-500.0,0.00017534,2]
[424101783,1780589460000,-3210.41,0.00017534,2]
[424101784,1780589460000,-923.32,0.00017534,2]
[424101785,1780589460000,-1424.81,0.00017534,2]
[424101782,1780589460000,-500.0,0.00017534,2]
[424101790,1780589460000,-237.05,0.00017534,2]
[424101772,1780589460000,-670.93,0.00017534,2]
[424101781,1780589460000,-676.34,0.00017534,2]
[424101792,1780589460000,-500.0,0.00017534,2]
[424101789,1780589460000,-2341.85,0.00017534,2]
[424101791,1780589460000,-500.0,0.00017534,2]
[424101787,1780589460000,-578.01,0.00017534,2]
[424101794,1780589460000,-1047.04,0.00017534,2]
[424101793,1780589460000,-1040.92,0.00017534,2]
[424101796,1780589460000,-500.0,0.00017534,2]
[424101795,1780589460000,-566.51,0.00017534,2]
[424101751,1780589460000,-946.4,0.00017534,2]
[424101788,1780589460000,-1987.77,0.00017534,2]
[424101776,1780589460000,-500.0,0.00017534,2]
[424101786,1780589460000,-521.51,0.00017534,2]
[424101779,1780589460000,-12161.64,0.00017534,2]
[424101748,1780589460000,-511.22,0.00017534,2]
[424101773,1780589460000,-500.0,0.00017534,2]
[424101754,1780589460000,-1791.1,0.00017534,2]
[424101767,1780589460000,-567.5,0.00017534,2]
[424101765,1780589460000,-571.97,0.00017534,2]
[424101755,1780589460000,-589.99,0.00017534,2]
[424101756,1780589460000,-500.0,0.00017534,2]
[424101763,1780589460000,-2280.2,0.00017534,2]
[424101764,1780589460000,-514.78,0.00017534,2]
[424101757,1780589460000,-1019.56,0.00017534,2]
[424101766,1780589460000,-728.73,0.00017534,2]
[424101758,1780589460000,-500.0,0.00017534,2]
[424101760,1780589460000,-889.78,0.00017534,2]
[424101761,1780589460000,-500.0,0.00017534,2]
[424101762,1780589460000,-341.52851645,0.00017534,2]
[424101769,1780589460000,-500.0,0.00017534,2]
[424101777,1780589460000,-765.44,0.00017534,2]
[424101768,1780589460000,-526.21,0.00017534,2]
[424101759,1780589460000,-500.0,0.00017534,2]
[424101778,1780589460000,-500.0,0.00017534,2]
[424101770,1780589460000,-654.61,0.00017534,2]
[424101840,1780589461000,-2201.03,0.00017808,2]
[424101843,1780589461000,-500.0,0.00017808,2]
[424101836,1780589461000,-802.73,0.00017808,2]
[424101835,1780589461000,-511.22,0.00017808,2]
[424101834,1780589461000,-2515.87,0.00017808,2]
[424101829,1780589461000,-765.96,0.00017808,2]
[424101833,1780589461000,-500.0,0.00017808,2]
[424101827,1780589461000,-500.0,0.00017808,2]
[424101830,1780589461000,-585.31,0.00017808,2]
[424101841,1780589461000,-1791.1,0.00017808,2]
[424101825,1780589461000,-10082.36423193,0.000178,2]
[424101842,1780589461000,-589.99,0.00017808,2]
[424101837,1780589461000,-946.4,0.00017808,2]
[424101853,1780589461000,-567.5,0.00017808,2]
[424101844,1780589461000,-1019.56,0.00017808,2]
[424101839,1780589461000,-500.0,0.00017808,2]
[424101846,1780589461000,-500.0,0.00017808,2]
[424101856,1780589461000,-500.0,0.00017808,2]
[424101855,1780589461000,-500.0,0.00017808,2]
[424101845,1780589461000,-500.0,0.00017808,2]
[424101847,1780589461000,-889.78,0.00017808,2]
[424101854,1780589461000,-526.21,0.00017808,2]
[424101852,1780589461000,-728.73,0.00017808,2]
[424101851,1780589461000,-571.97,0.00017808,2]
[424101850,1780589461000,-514.78,0.00017808,2]
[424101848,1780589461000,-500.0,0.00017808,2]
[424101828,1780589461000,-500.0,0.00017808,2]
[424101838,1780589461000,-577.42,0.00017808,2]
[424101826,1780589461000,-1311.3977,0.00017808,2]
[424101798,1780589461000,-3183.02,0.00017534,2]
[424101832,1780589461000,-987.12,0.00017808,2]
[424101801,1780589461000,-2231.45,0.00017534,2]
[424101803,1780589461000,-500.0,0.00017534,2]
[424101802,1780589461000,-500.0,0.00017534,2]
[424101800,1780589461000,-2288.73,0.00017534,2]
[424101804,1780589461000,-500.0,0.00017534,2]
[424101805,1780589461000,-306.51149752,0.00017536,2]
[424101799,1780589461000,-500.0,0.00017534,2]
[424101797,1780589461000,-1127.29,0.00017534,2]
[424101857,1780589461000,-654.61,0.00017808,2]
[424101806,1780589461000,-464.47453402,0.00017545,2]
[424101807,1780589461000,-469.27830261,0.00017583,2]
[424101808,1780589461000,-150.37,0.000176,2]
[424101809,1780589461000,-10082.36423193,0.000176,2]
[424101819,1780589461000,-462.15132321,0.00017731,2]
[424101811,1780589461000,-497.23640602,0.00017602,2]
[424101814,1780589461000,-456.56670485,0.00017602,2]
[424101813,1780589461000,-566.45982152,0.00017602,2]
[424101810,1780589461000,-477.32557543,0.00017602,2]
[424101815,1780589461000,-384.833379,0.00017618,2]
[424101817,1780589461000,-1524.814008,0.00017653,2]
[424101818,1780589461000,-241.319939,0.00017653,2]
[424101816,1780589461000,-276.940021,0.00017653,2]
[424101820,1780589461000,-479.9082935,0.00017756,2]
[424101821,1780589461000,-365.45273203,0.00017756,2]
[424101822,1780589461000,-562.07956597,0.00017757,2]
[424101824,1780589461000,-150.52,0.000178,2]
[424101831,1780589461000,-500.0,0.00017808,2]
[424101823,1780589461000,-180.72062066,0.00017759,2]
[424101812,1780589461000,-303.86308469,0.00017602,2]
[424101860,1780589461000,-500.0,0.00017808,2]
[424101849,1780589461000,-2280.2,0.00017808,2]
[424101866,1780589461000,-500.0,0.00017808,2]
[424101885,1780589461000,-2288.73,0.00017808,2]
[424101896,1780589461000,-711.0669851,0.00017813,2]
[424101887,1780589461000,-500.0,0.00017808,2]
[424101888,1780589461000,-500.0,0.00017808,2]
[424101897,1780589461000,-730.9716652,0.00017813,2]
[424101898,1780589461000,-166.00304204,0.00017813,2]
[424101899,1780589461000,-334.04405936,0.00017813,2]
[424101903,1780589461000,-166.27426427,0.00017813,2]
[424101902,1780589461000,-626.43730061,0.00017813,2]
[424101904,1780589461000,-168.80086548,0.00017813,2]
[424101900,1780589461000,-351.46970912,0.00017813,2]
[424101901,1780589461000,-616.45425083,0.00017813,2]
[424101907,1780589461000,-677.53863793,0.00017813,2]
[424101886,1780589461000,-2231.45,0.00017808,2]
[424101918,1780589461000,-166.58218284,0.00017813,2]
[424101917,1780589461000,-308.21294605,0.00017813,2]
[424101906,1780589461000,-711.92617497,0.00017813,2]
[424101909,1780589461000,-505.26558271,0.00017813,2]
[424101913,1780589461000,-188.5502877,0.00017813,2]
[424101910,1780589461000,-354.6285651,0.00017813,2]
[424101916,1780589461000,-747.24632316,0.00017813,2]
[424101915,1780589461000,-2674.41314386,0.00017813,2]
[424101914,1780589461000,-571.78640691,0.00017813,2]
[424101912,1780589461000,-644.94567234,0.00017813,2]
[424101911,1780589461000,-801.24949547,0.00017813,2]
[424101919,1780589461000,-248.7296911,0.00017813,2]
[424101920,1780589461000,-596.31968329,0.00017813,2]
[424101859,1780589461000,-500.0,0.00017808,2]
[424101908,1780589461000,-892.07161513,0.00017813,2]
[424101889,1780589461000,-500.0,0.00017808,2]
[424101905,1780589461000,-704.81823773,0.00017813,2]
[424101895,1780589461000,-760.40392025,0.00017813,2]
[424101894,1780589461000,-272.97678917,0.00017813,2]
[424101863,1780589461000,-765.44,0.00017808,2]
[424101861,1780589461000,-1024.0,0.00017808,2]
[424101858,1780589461000,-670.93,0.00017808,2]
[424101862,1780589461000,-430.60450068,0.00017808,2]
[424101867,1780589461000,-676.34,0.00017808,2]
[424101869,1780589461000,-3210.41,0.00017808,2]
[424101865,1780589461000,-12161.64,0.00017808,2]
[424101868,1780589461000,-500.0,0.00017808,2]
[424101871,1780589461000,-1424.81,0.00017808,2]
[424101870,1780589461000,-923.32,0.00017808,2]
[424101875,1780589461000,-2341.85,0.00017808,2]
[424101873,1780589461000,-578.01,0.00017808,2]
[424101872,1780589461000,-521.51,0.00017808,2]
[424101864,1780589461000,-456.39,0.00017808,2]
[424101877,1780589461000,-520.12849133,0.00017808,2]
[424101878,1780589461000,-1040.92,0.00017808,2]
[424101892,1780589461000,-1099.46861804,0.00017813,2]
[424101891,1780589461000,-518.8787081,0.00017813,2]
[424101893,1780589461000,-160.97028664,0.00017813,2]
[424101883,1780589461000,-3183.02,0.00017808,2]
[424101890,1780589461000,-217.85757063,0.00017813,2]
[424101884,1780589461000,-500.0,0.00017808,2]
[424101882,1780589461000,-1127.29,0.00017808,2]
[424101879,1780589461000,-1047.04,0.00017808,2]
[424101874,1780589461000,-1987.77,0.00017808,2]
[424101880,1780589461000,-566.51,0.00017808,2]
[424101876,1780589461000,-500.0,0.00017808,2]
[424101881,1780589461000,-500.0,0.00017808,2]
[424101980,1780589462000,-612.67467778,0.0001783,2]
[424101958,1780589462000,-160.12417581,0.00017826,2]
[424101965,1780589462000,-455.8978899,0.00017826,2]
[424101962,1780589462000,-461.98489934,0.00017826,2]
[424101952,1780589462000,-630.3413286,0.00017826,2]
[424101970,1780589462000,-308.71738526,0.0001783,2]
[424101959,1780589462000,-627.39307027,0.00017826,2]
[424101963,1780589462000,-371.07063801,0.00017826,2]
[424101954,1780589462000,-777.62175475,0.00017826,2]
[424101953,1780589462000,-561.7977015,0.00017826,2]
[424101955,1780589462000,-769.66727213,0.00017826,2]
[424101969,1780589462000,-649.95768114,0.0001783,2]
[424101961,1780589462000,-223.70254355,0.00017826,2]
[424101964,1780589462000,-624.85557732,0.00017826,2]
[424101976,1780589462000,-704.90143769,0.0001783,2]
[424101966,1780589462000,-162.20329335,0.00017826,2]
[424101968,1780589462000,-167.74097742,0.0001783,2]
[424101975,1780589462000,-978.01119929,0.0001783,2]
[424101972,1780589462000,-550.38075061,0.0001783,2]
[424101971,1780589462000,-871.6673011,0.0001783,2]
[424101974,1780589462000,-848.69533234,0.0001783,2]
[424101973,1780589462000,-432.15213096,0.0001783,2]
[424101981,1780589462000,-191.49968352,0.0001783,2]
[424101977,1780589462000,-650.67842728,0.0001783,2]
[424101979,1780589462000,-162.22916684,0.0001783,2]
[424101982,1780589462000,-605.32523899,0.0001783,2]
[424101978,1780589462000,-926.73549445,0.0001783,2]
[424101950,1780589462000,-785.57642672,0.00017813,2]